{"text_format":"1","workbook":"xlsx","n_sheets":7,"sheets":["ESCALA","1. ER","2. AI","3. Int","4. Acc","5. Adap","Resultados"],"not_rendered":{"charts":0,"images":0,"macros":1,"external_links":0,"defined_names":0,"comments":0,"pivot_tables":0},"unopened":[],"bounds":{"document_bytes":16777216,"sheet_cells":100000,"rows_first":2000,"rows_last":500,"rows_between":2000,"halvings":0,"cell_chars":16384,"cell_head_chars":4096},"cells_cut":0,"cells_raw":0,"read":"whole","date_system":"1900"}

{"sheet":"ESCALA","index":0,"n_rows":7,"n_cols":3,"rows_kept":7,"cut":false,"hidden":false,"merged":[]}
["Nivel de cumplimiento","Puntos","Descripción"]
["Sin aplicar",0,"No se cumple la regla\n0 %"]
["No se cumple",1,"Existe la intención de aplicación, sin embargo no se cumple con la regla\n1 - 24%"]
["Mínimo",2,"Se presenta una intención verificable de la regla encaminada a la ejecución de la misma\n25 -49 %"]
["Parcial",3,"Se encuentran la regla definida medianamente\n50 -74 %"]
["Significativo",4,"Se encuentra la regla establecida con algunos parámetros omitidos\n75 - 99 %"]
["Excelente",5,"Se cumple satisfactoriamente con la regla\n100 %"]

{"sheet":"1. ER","index":1,"n_rows":44,"n_cols":5,"rows_kept":44,"cut":false,"hidden":false,"merged":[[43,0,43,1],[1,1,1,2],[2,0,2,1],[0,0,0,2],[3,0,3,2],[14,0,14,2],[21,0,21,2],[34,0,34,2],[39,0,39,2],[28,0,28,2]]}
["Entendimiento de los requerimientos"]
[]
["Criterio",null,"Cumplimiento"]
["1. Completos"]
[1,"¿Se abordan todas las necesidades conocidas?\n\nEn la definición de requerimientos cada necesidad del cliente  se ha tomado en cuenta para ser solucionada, es decir se identifican los diferentes usuarios con sus características particulares. En algunos casos solo son relevantes las necesidades del usuario, pero hay que tener en cuenta para el resto de las ocasiones tomar en cuenta también la de los stakeholders.",null,{"$f":"NumberScore(C5)","v":0}]
[2,"¿La información recolectada es suficiente parada determinar la funcionalidad necesaria?\n\nLa información que se recolectó es suficiente para el diseño, es decir, proporciona de manera clara las necesidades, así como funcionamiento tradicional, o en su defecto se identifica como información \"por definirse\"",null,{"$f":"NumberScore(C6)","v":0}]
[3,"¿Están definidas todas las interfaces externas de hardware?\n\nDe ser necesario en el sistema que se establezca conexión con un conjunto de controles o dispositivos que permiten que el usuario intercambie datos con la máquina, se debe especificar el hardware requerido y la función que estará cumpliendo.",null,0]
[4,"¿Están definidas todas las interfaces externas de software?\n\nSe establezce uno o más programas ajenos al sistema, especificando el cuales serán y para que se usarán, por ejemplo, sistemas operativos y versiones.",null,0]
[5,"¿Están definidas todas las interfaces externas de comunicación?\n\nSe cuenta con comunicación con otros sistemas, se debe conocer y plasmar cuales serán dichos sistemas, bajo que protocolo de comunicación trabajan, así como consideraciones especiales que tengan para establecer conexión. Ej. Correo, servicios web, sockets, etc.",null,0]
[6,"¿Se documenta el comportamiento esperado para todas las condiciones de error anticipadas propiciadas por los usuarios?\n\nSe describe las respuestas que se darán a errores de manera anticipada como puede ser entrada de datos y acciones inválidas.",null,0]
[7,"¿Los requisitos proporcionan una base adecuada para el diseño?\n\nLos requisitos proporcionan la información necesaria para implementar todas las funciones requeridas, es decir, el diseñador solo se encarga de programar cada función y no de crear el procedimiento en su totalidad.",null,0]
[8,"¿Los requisitos proporcionan una base adecuada para la prueba?\n\nLos requisitos plasman los objetivos de cada funcionalidad del producto de forma que estos mismos ayudan definir métricas de pruebas y determinar el éxito del producto.",null,0]
[9,"10.¿Se incluye la prioridad de implementación de cada requisito?\n\nSe provee de una pequeña descripción o indicador para conocer la prioridad alta, media o baja.",null,0]
[10,"¿Está cada requisito en el alcance?\r\n\r\nCada requisito es propio del objetivo que se desea cubrir en todo el proyecto.",null,0,{"$f":"COUNTBLANK(C5:C14)","v":10}]
["2. Correctos",null,null,0]
[{"$f":"A14+1","v":11},".¿Los requisitos se encuentran sin duplicidad?\r\n\r\nLos requisitos no se ha recogido más de dos veces.",null,0]
[{"$f":"A16+1","v":12},"¿Cada requisito es claro?\n\nLa forma en que se plasman los requisitos es clara y concisa.",null,0]
[{"$f":"A17+1","v":13},"¿Se puede verificar cada requisito?\n\nEl origen de las necesidades de cada requisito se puede comprobar a través de pruebas de campo, demostraciones, revisiones o análisis, según sea el caso de estudio.",null,0]
[{"$f":"A18+1","v":14},"¿Son claros y significativos los estados de error?\n\nSe definen los estados de error que podrían presentarse ante las diversas situaciones que pudieran existir.",null,0]
[{"$f":"A19+1","v":15},"¿Cada requisito está relacionado a una necesidad?\n\nSon todos los requisitos realmente necesidades, no soluciones o restricciones. Los requisitos funcionales deben plasmar la necesidades a cubrir, pero no la manera en la que se da solución, por lo cual no se debe definir lenguajes de programación, bibliotecas, etc. , ya que no son parte del levantamiento de requerimiento. Sin embargo, si se deben reconocer los enlaces externos de hardware, software y comunicaciones.",null,0]
[{"$f":"A20+1","v":16},"¿Son los requisitos técnicamente viables?\n\nCada requisito es realista y puede implementarse dentro de las limitaciones que se tengan.",null,0,{"$f":"COUNTBLANK(C16:C21)","v":6}]
["3. Atributos de calidad",null,null,0]
[{"$f":"A21+1","v":17},"¿Se especifica el objetivo de usabilidad?\r\n\r\nSe define las características de usabilidad a cumplir y qué metodologías a seguir para medirlas.",null,0]
[{"$f":"A23+1","v":18},"¿Se especifica el objetivo de protección de datos?\n\nSe especifica las necesidades de seguridad o privacidad de datos que puedan restringir el uso del producto. Estos podrían referirse a seguridad física, de datos o del software.",null,0]
[{"$f":"A24+1","v":19},"¿Se especifica el objetivo de seguridad?\n\nSe identifica los requisitos ante la pérdida o daño del producto, así como las acciones que se deben tomar para salvaguardar la integridad del mismo ante acciones peligrosas. Es válido identificar certificaciones de seguridad, políticas o reglamentos que deba cumplir el producto.",null,0]
[{"$f":"A25+1","v":20},"¿Se consideran otros atributos de calidad?\n\nSe incluyen más atributos de calidad necesarios para el desarrollo del producto, los cuales varían o se seleccionan dependiendo el contexto de uso. Alguno de los atributos que se pueden incluir son: disponibilidad,  instalación, integridad, modificalidad, portabilidad, reutilización,  escalabilidad,  entre otros.",null,0]
[{"$f":"A26+1","v":21},"¿Se identifican las funciones críticas de tiempo?\n\nSe identifica las funciones cuyas respuestas tengan un límite de tiempo",null,0]
[{"$f":"A27+1","v":22},"¿Se han abordado adecuadamente los problemas de internacionalización y localización?\n\nSe identifican las necesidades del producto de acuerdo con el uso del país, cultura, ubicación geográfica. Algunos de los factores que se podrían incluir son diferencias de moneda, formato de fechas, números, direcciones, números de teléfono, idioma, los símbolos y  caracteres, nombre dado y orden de apellido, zonas horarias, regulaciones y leyes internacionales, tamaños de papel utilizados, pesos y medidas.",null,0,{"$f":"COUNTBLANK(C23:C28)","v":6}]
["3.1 Accesibilidad",null,null,0]
[{"$f":"A28+1","v":23},"¿Se especifica cuál es el nivel de ayuda en pantalla?\n\nSe define las necesidades de accesibilidad (Mensajes, glosarios, menús e índices) que deben proporcionarse al usuario esto con el fin de que pueda interactuar con el sistema.",null,0]
[{"$f":"A30+1","v":24},"¿Se define las necesidades de presentación visual?\n\nLas necesidades de presentación respecto a los contrastes de color, tamaños y posiciones de acuerdo a su campo de visión, así como el nivel de discapacidad.",null,0]
[{"$f":"A31+1","v":25},"¿Proporciona criterios de validación de formularios?\n\nLos formularios se deben organizar de una manera lógica, es decir,  proporcionar buenas y claras instrucciones acerca de la información que se desea transmitir. Si los elementos del formulario son obligatorios se debe asegurar de indicarlo, así como de que el orden de los elementos del formulario (de acceso es lógico y fácil).",null,0]
[{"$f":"A32+1","v":26},"¿Se conocen los estándares que deben seguir?\n\nSe definen cuáles son los estándares de accesibilidad Web que deberán aplicar ya sean ISO, AENOR o de la W3C.",null,0]
[{"$f":"A33+1","v":27},"¿Se define el uso del teclado?\n\nSe definen un conjunto de atajos del teclado a ocupar de acuerdo a los lectores de pantalla que se han de usar. O en su defecto si se definirán nuevos atajos para un producto accesible y con lectura sin necesidad de un lector en específico",null,0,{"$f":"COUNTBLANK(C30:C34)","v":5}]
["4. Organización y trazabilidad",null,null,0]
[{"$f":"A34+1","v":28},"¿Los requerimientos están organizados, de fácil ubicación y acceso?\n\nLos requerimientos están organizados y escritos para que las diversas partes interesadas puedan entenderlos.",null,0]
[{"$f":"A36+1","v":29},"¿Son consistentes todas las referencias cruzadas?\n\nLa referencias cruzadas permiten trazar el requisito desde el origen del proyecto hasta el final.",null,0]
[{"$f":"A37+1","v":30},"¿Cada requisito está etiquetado de forma correcta?\n\nCada requisito está identificado de manera univoca e inmutable.",null,0]
[{"$f":"A38+1","v":31},"¿Se conoce el origen de cada requisito?\n\nPuede vincularse hacia atrás hasta su origen y hacia los requisitos derivados, los elementos de diseño, el código que lo implementa y las pruebas que verifican .",null,0,{"$f":"COUNTBLANK(C36:C39)","v":4}]
["5. Detalle del informe de requerimientos",null,null,0]
[{"$f":"A39+1","v":32},"¿Están todos los casos de uso o flujos de proceso?\n\nCada requisito cuenta con una esquematización que ayude a entender el procedimiento a implementar.",null,0]
[{"$f":"A41+1","v":33},"¿Están todos los flujos alternativos?\n\nEn el esquema están representadas todas la bifurcaciones posibles y etiquetadas de forma única.",null,0]
[{"$f":"A42+1","v":34},"¿Existen modelos visuales que proporcionen una representación visual del flujo de información?\n\nLos modelos visuales ayudan a comprender el flujo y los requerimientos brindando claridad a los requerimientos para ser implementados.",null,0,{"$f":"COUNTBLANK(C41:C43)","v":3}]
["Total",null,{"$f":"SUM(D5:D43)/(A43*5)","v":0}]

{"sheet":"2. AI","index":2,"n_rows":22,"n_cols":7,"rows_kept":22,"cut":false,"hidden":false,"merged":[[7,0,7,1],[13,0,13,1],[18,0,18,1],[0,0,0,5],[2,0,2,1],[3,0,3,5]]}
["Comprensión de la Arquitectura de información"]
[]
["Criterio",null,"Importancia","Calificación","Importancia numérica","Calificación Ponderada"]
["1. Organización"]
[{"$f":"'1. ER'!A43+1","v":35},"¿Se ofrece texto alternativo?\n\nLos elementos no textuales de la interfaz disponen de un texto alternativo que informe suficientemente del contenido del elemento a personas que no tienen acceso visual a él.",null,null,{"$f":"IF(C5=\"Alta\",3,(IF(C5=\"Media\",2,(IF(C5=\"Baja\",1,0)))))","v":0},{"$f":"weithCalification(E5,D5,((10/$E$22)*E5))","v":{"$error":"#VALUE!"}}]
[{"$f":"A5+1","v":36},"¿Existe una alternativa de transmisión de información para situaciones donde se usa el color con ese propósito?\n\nEl color es el único medio visual para transmitir de información, indicar una acción, solicitar una respuesta o distinguir un elemento visual.",null,null,{"$f":"IF(C6=\"Alta\",3,(IF(C6=\"Media\",2,(IF(C6=\"Baja\",1,0)))))","v":0},{"$f":"weithCalification(E6,D6,((10/$E$22)*E6))","v":{"$error":"#VALUE!"}},"*poner ejemplos"]
[{"$f":"A6+1","v":37},"¿Se puede ver el significado de una abreviatura?\n\nSi hay abreviaturas, se encuentra disponible un mecanismo para identificar la forma expandida o el significado de las abreviaturas.",null,null,{"$f":"IF(C7=\"Alta\",3,(IF(C7=\"Media\",2,(IF(C7=\"Baja\",1,0)))))","v":0},{"$f":"weithCalification(E7,D7,((10/$E$22)*E7))","v":{"$error":"#VALUE!"}}]
["2. Etiquetado"]
[{"$f":"A7+1","v":38},"¿Los títulos son representativos?\n\nLas páginas web tienen títulos que describen el tema, el propósito y sirven de referencia al usuario.",null,null,{"$f":"IF(C9=\"Alta\",3,(IF(C9=\"Media\",2,(IF(C9=\"Baja\",1,0)))))","v":0},{"$f":"weithCalification(E9,D9,((10/$E$22)*E9))","v":{"$error":"#VALUE!"}}]
[{"$f":"A9+1","v":39},"¿El texto del enlace es descriptivo?\n\nEl texto del enlace indica el destino y se evitan cadenas de texto poco entendibles.",null,null,0,{"$f":"weithCalification(E10,D10,((10/$E$22)*E10))","v":{"$error":"#VALUE!"}}]
[{"$f":"A10+1","v":40},"¿El etiquetado ayuda a determinar el propósito?\n\nLos títulos y las etiquetas describen el tema o el propósito de cada sección.",null,null,0,{"$f":"weithCalification(E11,D11,((10/$E$22)*E11))","v":{"$error":"#VALUE!"}}]
[{"$f":"A11+1","v":41},"¿Los encabezados se utilizan como medio de organización?\n\nLos encabezados de sección se utilizan para estructurar el contenido jerárquicamente respetando el orden de etiquetado.",null,null,{"$f":"IF(C12=\"Alta\",3,(IF(C12=\"Media\",2,(IF(C12=\"Baja\",1,0)))))","v":0},{"$f":"weithCalification(E12,D12,((10/$E$22)*E12))","v":{"$error":"#VALUE!"}}]
[{"$f":"A12+1","v":42},"¿Se proporcionan instrucciones de interacción?\n\nSe proporcionan etiquetas o instrucciones cuando el contenido requiere una acción del usuario.",null,null,{"$f":"IF(C13=\"Alta\",3,(IF(C13=\"Media\",2,(IF(C13=\"Baja\",1,0)))))","v":0},{"$f":"weithCalification(E13,D13,((10/$E$22)*E13))","v":{"$error":"#VALUE!"}}]
["3. Navegación"]
[{"$f":"A13+1","v":43},"¿Se puede navegar saltando contenido?\r\n\r\nHay un mecanismo disponible para desplazar el foco, evitando bloques de contenido.",null,null,0,{"$f":"weithCalification(E15,D15,((10/$E$22)*E15))","v":{"$error":"#VALUE!"}}]
[{"$f":"A15+1","v":44},"¿El primer enlace lleva al contenido principal de la página?\n\nDentro de cada página el primer elemento funcional que se encuentre debe ir a la página principal del sitio.",null,null,0,{"$f":"weithCalification(E16,D16,((10/$E$22)*E16))","v":{"$error":"#VALUE!"}}]
[{"$f":"A16+1","v":45},"¿La navegación es consistente?\n\nLa navegación dentro de las páginas Web se presentan en el mismo orden relativo o similar."]
[{"$f":"A17+1","v":46},"¿Existen mecanismos que permitan encontrar una página diferente a la actual?\n\nHay más de una manera disponible para ubicar una página web dentro de un conjunto de páginas web.",null,null,0,{"$f":"weithCalification(E18,D18,((10/$E$22)*E18))","v":{"$error":"#VALUE!"}}]
["4. Búsqueda"]
[{"$f":"A18+1","v":47},"¿Se puede desplazar mediante el uso del teclado?\n\nToda las funciones del sistemas pueden ser operadas por teclado sin tiempos específicos para pulsaciones individuales. ",null,null,0,{"$f":"weithCalification(E20,D20,((10/$E$22)*E20))","v":{"$error":"#VALUE!"}}]
[{"$f":"A20+1","v":48},"¿Existe un mecanismo para que el usuario sepa en qué parte se encuentra?\n\nLa información sobre la ubicación del usuario dentro del sistema está visible",null,null,0,{"$f":"weithCalification(E21,D21,((10/$E$22)*E21))","v":{"$error":"#VALUE!"}}]
[null,null,null,"Total",{"$f":"SUM(E5:E21)","v":0},{"$f":"SUM(F5:F21)","v":{"$error":"#VALUE!"}}]

{"sheet":"3. Int","index":3,"n_rows":39,"n_cols":6,"rows_kept":39,"cut":false,"hidden":false,"merged":[[0,0,0,5],[2,0,2,1],[3,0,3,1],[5,0,5,1],[27,0,27,1],[30,0,30,1],[33,0,33,1],[35,0,35,1],[9,0,9,1],[13,0,13,1],[18,0,18,1],[21,0,21,1],[24,0,24,1]]}
["Comprensión de la Interacción"]
[]
["Criterio",null,"Importancia","Calificación","Importancia numérica","Calificación Ponderada"]
[" 1. Visibilidad del estado del sistema"]
[{"$f":"'2. AI'!A21+1","v":49},"¿Se proporciona retroalimentación?\n\nSe informa al usuario del estado de las operaciones en todo momento.",null,null,{"$f":"IF(C5=\"Alta\",3,(IF(C5=\"Media\",2,(IF(C5=\"Baja\",1,0)))))","v":0},{"$f":"weithCalification(E5,D5,((10/$E$39)*E5))","v":{"$error":"#VALUE!"}}]
[" 2. Coincidencia entre el sistema y el mundo real."]
[{"$f":"A5+1","v":50},"¿Se hicieron pruebas o el usuario ayudó a determinar el vocabulario a usar en el sistema?\n\nTodas las palabras, las frases y los conceptos usados son familiares al usuario.",null,null,{"$f":"IF(C7=\"Alta\",3,(IF(C7=\"Media\",2,(IF(C7=\"Baja\",1,0)))))","v":0},{"$f":"weithCalification(E7,D7,((10/$E$39)*E7))","v":{"$error":"#VALUE!"}}]
[{"$f":"A7+1","v":51},"¿Se trabajó con el usuario para determinar la organización de la información? \r\n\r\nSe presenta la información en un orden simple, natural y lógico al usuario.",null,null,{"$f":"IF(C8=\"Alta\",3,(IF(C8=\"Media\",2,(IF(C8=\"Baja\",1,0)))))","v":0},{"$f":"weithCalification(E8,D8,((10/$E$39)*E8))","v":{"$error":"#VALUE!"}}]
[{"$f":"A8+1","v":52},"¿Se trabajó con el usuario para determinar etiquetas de enlaces y controles usadas?\n\nEl uso de etiquetas de enlaces y controles son representativas de la función que hace ayudando al usuario a comprender el sistema y mejorando su interacción.",null,null,{"$f":"IF(C9=\"Alta\",3,(IF(C9=\"Media\",2,(IF(C9=\"Baja\",1,0)))))","v":0},{"$f":"weithCalification(E9,D9,((10/$E$39)*E9))","v":{"$error":"#VALUE!"}}]
["3. Control y libertad del usuario"]
[{"$f":"A9+1","v":53},"¿Existen mecanismos para deshacer acciones no deseadas? \n\nSe proporcionan recursos para cancelar y rehacer acciones",null,null,{"$f":"IF(C11=\"Alta\",3,(IF(C11=\"Media\",2,(IF(C11=\"Baja\",1,0)))))","v":0},{"$f":"weithCalification(E11,D11,((10/$E$39)*E11))","v":{"$error":"#VALUE!"}}]
[{"$f":"A11+1","v":54},"¿Existen mecanismos para regresar a una sección anterior? \n\nEn cualquier vista de a aplicación se identifican claramente controles para abandonarla y volver a pasos previos.",null,null,{"$f":"IF(C12=\"Alta\",3,(IF(C12=\"Media\",2,(IF(C12=\"Baja\",1,0)))))","v":0},{"$f":"weithCalification(E12,D12,((10/$E$39)*E12))","v":{"$error":"#VALUE!"}}]
[{"$f":"A12+1","v":55},"¿Existen mecanismos para regresar a una sección anterior? \n\nSe proporcionan instalaciones para regresar al nivel superior en cualquier etapa. Por ejemplo, enlaces a la página de inicio.",null,null,{"$f":"IF(C13=\"Alta\",3,(IF(C13=\"Media\",2,(IF(C13=\"Baja\",1,0)))))","v":0},{"$f":"weithCalification(E13,D13,((10/$E$39)*E13))","v":{"$error":"#VALUE!"}}]
[" 4. Consistencia y estándares"]
[{"$f":"A13+1","v":56},"¿El diseño es consistente?\r\n\r\nEl uso de la terminología, controles, gráficos y menús es la misma o similar en todo el sistema.",null,null,{"$f":"IF(C15=\"Alta\",3,(IF(C15=\"Media\",2,(IF(C15=\"Baja\",1,0)))))","v":0},{"$f":"weithCalification(E15,D15,((10/$E$39)*E15))","v":{"$error":"#VALUE!"}}]
[{"$f":"A15+1","v":57},"¿Se puede hacer lectura de pantalla?\n\nSe consideran los diferentes atajos de teclado para lectura en los lectores de pantalla (Jaws, NVDA, VoiceOver u otros).",null,null,{"$f":"IF(C16=\"Alta\",3,(IF(C16=\"Media\",2,(IF(C16=\"Baja\",1,0)))))","v":0},{"$f":"weithCalification(E16,D16,((10/$E$39)*E16))","v":{"$error":"#VALUE!"}}]
[{"$f":"A16+1","v":58},"¿Se puede navegar por el sistema con ayuda del diversos lectores?\n\nSe consideran los diferentes atajos de teclado para navegación en los lectores de pantalla (Jaws, NVDA, VoiceOver u otros).",null,null,{"$f":"IF(C17=\"Alta\",3,(IF(C17=\"Media\",2,(IF(C17=\"Baja\",1,0)))))","v":0},{"$f":"weithCalification(E17,D17,((10/$E$39)*E17))","v":{"$error":"#VALUE!"}}]
[{"$f":"A17+1","v":59},"¿Hay un aspecto y una sensación coherente con la interfaz del sistema?\n \nLa presentación de la interfaz es intuitiva y comprensible para el usuario.",null,null,{"$f":"IF(C18=\"Alta\",3,(IF(C18=\"Media\",2,(IF(C18=\"Baja\",1,0)))))","v":0},{"$f":"weithCalification(E18,D18,((10/$E$39)*E18))","v":{"$error":"#VALUE!"}}]
[" 5. Prevención de errores"]
[{"$f":"A18+1","v":60},"8.¿Existen alternativas de entrada de datos además de escritura? \n\nLos controles de entrada de información se adaptan al tipo de información que se solicita. Ej. Opciones limitadas: cuadros combinados, boléanos: casillas de verificación, etc.",null,null,{"$f":"IF(C20=\"Alta\",3,(IF(C20=\"Media\",2,(IF(C20=\"Baja\",1,0)))))","v":0},{"$f":"weithCalification(E20,D20,((10/$E$39)*E20))","v":{"$error":"#VALUE!"}}]
[{"$f":"A20+1","v":61},"9.¿Se pide confirmación por parte del usuario?\n\nSe requiere la confirmación del usuario antes de llevar a cabo una acción potencialmente irreversible. Por ejemplo, eliminar algo.",null,null,{"$f":"IF(C21=\"Alta\",3,(IF(C21=\"Media\",2,(IF(C21=\"Baja\",1,0)))))","v":0},{"$f":"weithCalification(E21,D21,((10/$E$39)*E21))","v":{"$error":"#VALUE!"}}]
[" 6. Reconocimiento en lugar de recordar"]
[{"$f":"A21+1","v":62},"¿La ayuda en pantalla está visible? \n\nLas instrucciones para las distintas operaciones deben estar visibles o ser facilmente localizables al momento de necesitarlas.",null,null,{"$f":"IF(C23=\"Alta\",3,(IF(C23=\"Media\",2,(IF(C23=\"Baja\",1,0)))))","v":0},{"$f":"weithCalification(E23,D23,((10/$E$39)*E23))","v":{"$error":"#VALUE!"}}]
[{"$f":"A23+1","v":63},"¿Es obvia la relación entre los controles y sus acciones?\n\nLa etiqueta o instrucciones adjuntas a los diferentes controles indican claramente la funcionalidad.",null,null,{"$f":"IF(C24=\"Alta\",3,(IF(C24=\"Media\",2,(IF(C24=\"Baja\",1,0)))))","v":0},{"$f":"weithCalification(E24,D24,((10/$E$39)*E24))","v":{"$error":"#VALUE!"}}]
[" 7. Flexibilidad y eficiencia de uso"]
[{"$f":"A24+1","v":64},"¿Consideró usuarios novatos en el proceso de desarrollo? \n\nEl producto es fácil de usar incluso para aquellos usuarios con poca experiencia tecnológica.",null,null,{"$f":"IF(C26=\"Alta\",3,(IF(C26=\"Media\",2,(IF(C26=\"Baja\",1,0)))))","v":0},{"$f":"weithCalification(E26,D26,((10/$E$39)*E26))","v":{"$error":"#VALUE!"}}]
[{"$f":"A26+1","v":65},"¿Se han evitado registros innecesarios? \r\n\r\nEl usuario solo ingresa datos cuando no pueden ser obtenidos o generados por otra fuente como bases de datos o certificados electrónicos principalmente cuando son datos personales.",null,null,{"$f":"IF(C27=\"Alta\",3,(IF(C27=\"Media\",2,(IF(C27=\"Baja\",1,0)))))","v":0},{"$f":"weithCalification(E27,D27,((10/$E$39)*E27))","v":{"$error":"#VALUE!"}}]
[" 8. Diseño estético y minimalista"]
[{"$f":"A27+1","v":66},"¿El diseño está avalado por usuario o expertos en usabilidad? \r\n\r\nLa interacción con el producto no requiere de capacitación, haciéndolo fácil de aprender sin causar frustración.",null,null,{"$f":"IF(C29=\"Alta\",3,(IF(C29=\"Media\",2,(IF(C29=\"Baja\",1,0)))))","v":0},{"$f":"weithCalification(E29,D29,((10/$E$39)*E29))","v":{"$error":"#VALUE!"}}]
[{"$f":"A29+1","v":67},"¿El sitio Web tiene información necesaria? \n\nEl sitio web está libre de información invasiva no relacionada que pueda distraer al usuario.",null,null,{"$f":"IF(C30=\"Alta\",3,(IF(C30=\"Media\",2,(IF(C30=\"Baja\",1,0)))))","v":0},{"$f":"weithCalification(E30,D30,((10/$E$39)*E30))","v":{"$error":"#VALUE!"}}]
["9.  Ayude a los usuarios a recuperarse de los errores"]
[]
[{"$f":"A30+1","v":68},"¿Los mensajes de error describen los problemas de manera detallada\n\nLos mensajes ayudan en su diagnóstico y sugieren formas de recuperación.",null,null,{"$f":"IF(C33=\"Alta\",3,(IF(C33=\"Media\",2,(IF(C33=\"Baja\",1,0)))))","v":0},{"$f":"weithCalification(E33,D33,((10/$E$39)*E33))","v":{"$error":"#VALUE!"}}]
["10.  Ayuda y documentación"]
[{"$f":"A33+1","v":69},"¿La ayuda provista es clara según el usuario?\n\nLos mensajes de ayuda están escritos en el lenguaje que entienden los usuarios.",null,null,{"$f":"IF(C35=\"Alta\",3,(IF(C35=\"Media\",2,(IF(C35=\"Baja\",1,0)))))","v":0},{"$f":"weithCalification(E35,D35,((10/$E$39)*E35))","v":{"$error":"#VALUE!"}}]
[" 11. Navegación"]
[{"$f":"A35+1","v":70},"¿Se proporciona retroalimentación de navegación?\n\nSe muestra al usuario su posición actual jerarquía de navegación del sistema. Por ejemplo, muestra los estados actuales e iniciales de un usuario.",null,null,{"$f":"IF(C37=\"Alta\",3,(IF(C37=\"Media\",2,(IF(C37=\"Baja\",1,0)))))","v":0},{"$f":"weithCalification(E37,D37,((10/$E$39)*E37))","v":{"$error":"#VALUE!"}}]
[{"$f":"A37+1","v":71},"¿Se proporciona elementos que ayuden a navegar por el sistema? \n\n Por ejemplo, servicios de búsqueda, instrucciones de navegación, serie de comandos para navegar, menús, entre otros.",null,null,{"$f":"IF(C38=\"Alta\",3,(IF(C38=\"Media\",2,(IF(C38=\"Baja\",1,0)))))","v":0},{"$f":"weithCalification(E38,D38,((10/$E$39)*E38))","v":{"$error":"#VALUE!"}}]
[null,null,null,"Total",{"$f":"SUM(E5:E38)","v":0},{"$f":"SUM(F5:F38)","v":{"$error":"#VALUE!"}}]

{"sheet":"4. Acc","index":4,"n_rows":23,"n_cols":6,"rows_kept":23,"cut":false,"hidden":false,"merged":[[2,1,2,4],[0,0,0,5]]}
["Comprobación automática de la accesibilidad"]
[]
[null,"Examinator",null,null,null,"AccessMonitor"]
["Página","Limitación total para ver","Limitación grave para ver","Limitación para comprender","Promedio","Calificación"]
[]
[]
[]
[]
[]
[]
[]
[]
[]
[]
[]
[]
[]
[]
[]
[]
[]
[null,null,null,"Subtotal",{"$f":"AVERAGE(E5:E21)","v":{"$error":"#DIV/0!"}},{"$f":"AVERAGE(F5:F21)/10","v":{"$error":"#DIV/0!"}}]
[null,null,null,"Total",{"$f":"(E22+F22)/2","v":{"$error":"#DIV/0!"}}]

{"sheet":"5. Adap","index":5,"n_rows":27,"n_cols":6,"rows_kept":27,"cut":false,"hidden":false,"merged":[[0,0,0,5],[2,0,2,1],[3,0,3,1],[4,0,4,1],[19,0,19,1],[23,0,23,1],[9,0,9,1],[11,0,11,1],[13,0,13,1],[14,0,14,1],[17,0,17,1]]}
[]
[]
["Criterio",null,"Importancia","Calificación","Importancia numérica","Calificación Ponderada"]
["BAJA VISIÓN"]
["1. Percepción"]
[{"$f":"'3. Int'!A38+1","v":72},"¿Se puede cambiar los tamaños de los elementos?\n\nCon excepción de los subtítulos e imágenes de texto, el texto puede redimensionarse sin tecnología de asistencia hasta un 200% sin dejar de mostrar el contenido y los controles.",null,null,{"$f":"IF(C6=\"Alta\",3,(IF(C6=\"Media\",2,(IF(C6=\"Baja\",1,0)))))","v":0},{"$f":"weithCalification(E6,D6,((10/$E$27)*E6))","v":{"$error":"#VALUE!"}}]
[{"$f":"A6+1","v":73},"¿Existe un alto contraste en gráficos?\n\nLa presentación visual tiene una relación de contraste de al menos 3: 1 del contenido principal respecto al fondo."]
[{"$f":"A7+1","v":74},"¿Existe un alto contraste en fuentes?\n\nLa presentación visual de texto e imágenes de texto tiene una relación de contraste  respecto al fondo de al menos 4.5: 1 y  en el caso de texto grande, incidental y logotipos tienen una relación de contraste respecto al fondo de al menos 3: 1.",null,null,{"$f":"IF(C8=\"Alta\",3,(IF(C8=\"Media\",2,(IF(C8=\"Baja\",1,0)))))","v":0},{"$f":"weithCalification(E8,D8,((10/$E$27)*E8))","v":{"$error":"#VALUE!"}}]
[{"$f":"A8+1","v":75},"¿Se puede personalizar los colores?\n\nEl usuario puede seleccionar los colores de fondo y de primer plano.",null,null,{"$f":"IF(C9=\"Alta\",3,(IF(C9=\"Media\",2,(IF(C9=\"Baja\",1,0)))))","v":0},{"$f":"weithCalification(E9,D9,((10/$E$27)*E9))","v":{"$error":"#VALUE!"}}]
["2. Operable"]
[{"$f":"A9+1","v":76},"¿Se puede operar la interfaz con el teclado?\n\nTodos los controles de la interfaz pueden ser manipulados usando el teclado.",null,null,{"$f":"IF(C11=\"Alta\",3,(IF(C11=\"Media\",2,(IF(C11=\"Baja\",1,0)))))","v":0},{"$f":"weithCalification(E11,D11,((10/$E$27)*E11))","v":{"$error":"#VALUE!"}}]
["4. Robustez"]
[{"$f":"A11+1","v":77},"¿La tecnología utilizada tiene soporte para la accesibilidad?\n\nExiste compatibilidad con algún agente de usuario actual, incluidas las tecnologías de asistencia.",null,null,{"$f":"IF(C13=\"Alta\",3,(IF(C13=\"Media\",2,(IF(C13=\"Baja\",1,0)))))","v":0},{"$f":"weithCalification(E13,D13,((10/$E$27)*E13))","v":{"$error":"#VALUE!"}}]
["CEGUERA"]
["1. Percepción"]
[{"$f":"A13+1","v":78},"¿Se proporcionan descripciones para los elementos gráficos?\r\n\r\nTodos los elementos gráficos sin excepción alguna cuentan con una descripción que puede ser leída  por el lector de pantalla.",null,null,{"$f":"IF(C16=\"Alta\",3,(IF(C16=\"Media\",2,(IF(C16=\"Baja\",1,0)))))","v":0},{"$f":"weithCalification(E16,D16,((10/$E$27)*E16))","v":{"$error":"#VALUE!"}}]
[{"$f":"A16+1","v":79},"¿Toda la información puede ser transmitida sin depender de los colores?\n\nPara presentar la información y que esta sea visualizada no es necesario el uso de color.",null,null,{"$f":"IF(C17=\"Alta\",3,(IF(C17=\"Media\",2,(IF(C17=\"Baja\",1,0)))))","v":0},{"$f":"weithCalification(E17,D17,((10/$E$27)*E17))","v":{"$error":"#VALUE!"}}]
["2. Operable"]
[{"$f":"A17+1","v":80},"¿Se cuenta con la opción de saltar bloques?\n\nExisten enlaces que permitan pasar a la siguiente sección o final de la página.",null,null,{"$f":"IF(C19=\"Alta\",3,(IF(C19=\"Media\",2,(IF(C19=\"Baja\",1,0)))))","v":0},{"$f":"weithCalification(E19,D19,((10/$E$27)*E19))","v":{"$error":"#VALUE!"}}]
["3. Comprensión"]
[{"$f":"A19+1","v":81},"¿Se da un uso adecuado a las tablas?\n\nTodas las tablas que sean presentadas cuentan con una descripción que ayude a entender el contenido, así mismo las tablas solo se usan como una representación de datos y no como medio de maqueración.",null,null,{"$f":"IF(C21=\"Alta\",3,(IF(C21=\"Media\",2,(IF(C21=\"Baja\",1,0)))))","v":0},{"$f":"weithCalification(E21,D21,((10/$E$27)*E21))","v":{"$error":"#VALUE!"}}]
[{"$f":"A21+1","v":82},"¿Las tablas se pueden entender en cualquier punto de ella?\n\nLas filas y las columnas estan correctamente etiquetadas con sus encabezados.",null,null,{"$f":"IF(C22=\"Alta\",3,(IF(C22=\"Media\",2,(IF(C22=\"Baja\",1,0)))))","v":0},{"$f":"weithCalification(E22,D22,((10/$E$27)*E22))","v":{"$error":"#VALUE!"}}]
[{"$f":"A22+1","v":83},"¿Se proporciona un texto del enlaces?\n\nLos enlaces cuentan con un texto del enlace que ayuda a comprender el fin del recurso, de manera clara y evitando la repetición de  formulas genéricas como \"Ver para más información\".",null,null,{"$f":"IF(C23=\"Alta\",3,(IF(C23=\"Media\",2,(IF(C23=\"Baja\",1,0)))))","v":0},{"$f":"weithCalification(E23,D23,((10/$E$27)*E23))","v":{"$error":"#VALUE!"}}]
["4. Robustez"]
[{"$f":"A23+1","v":84},"¿Se proporciona interacción a través del teclado?\n\nAl probar la aplicación se ha podido acceder a todos los recursos y funciones mediante el teclado.",null,null,{"$f":"IF(C25=\"Alta\",3,(IF(C25=\"Media\",2,(IF(C25=\"Baja\",1,0)))))","v":0},{"$f":"weithCalification(E25,D25,((10/$E$27)*E25))","v":{"$error":"#VALUE!"}}]
[{"$f":"A25+1","v":85},"¿Se proporciona interacción a través del lector de pantalla?\n\nAl probar la aplicación se ha podido acceder a todos los recursos y funciones mediante el lector de pantalla.",null,null,{"$f":"IF(C26=\"Alta\",3,(IF(C26=\"Media\",2,(IF(C26=\"Baja\",1,0)))))","v":0},{"$f":"weithCalification(E26,D26,((10/$E$27)*E26))","v":{"$error":"#VALUE!"}}]
[null,null,null,"Total",{"$f":"SUM(E6:E26)","v":0},{"$f":"SUM(F6:F26)","v":{"$error":"#VALUE!"}}]

{"sheet":"Resultados","index":6,"n_rows":12,"n_cols":2,"rows_kept":12,"cut":false,"hidden":false,"merged":[]}
["Apartado","Calificación"]
["1. Entendimiento de los requisitos",{"$f":"'1. ER'!C44","v":0}]
["Subtotal",{"$f":"B2","v":0}]
["2. Nivel de accesibilidad"]
["Grado de definición de la arquitectura de la información",{"$f":"'2. AI'!F22","v":{"$error":"#VALUE!"}}]
["Grado de entendimiento de los elementos de interacción",{"$f":"'3. Int'!F39","v":{"$error":"#VALUE!"}}]
["Comprobación automática de la accesibilidad",{"$f":"'4. Acc'!#REF!","v":{"$error":"#REF!"}}]
["Subtotal",{"$f":"SUM(B5:B7)/3","v":{"$error":"#VALUE!"}}]
["3. Grado de accesibilidad adaptativa"]
["Nivel de adaptación en función del nivel de discapacidad",{"$f":"'5. Adap'!F27","v":{"$error":"#VALUE!"}}]
["Subtotal",{"$f":"B10","v":{"$error":"#VALUE!"}}]
["Calificación final",{"$f":"(B3+B8+B11)/3","v":{"$error":"#VALUE!"}}]